bitfinex/quotes_BTCUSD_20241009
["timestamp","ask_amount","ask_price","bid_price","bid_amount"]
[1728491321369,0.001638,61868.0,61867.0,0.78433914]
[1728491322439,0.001644,61870.0,61869.0,0.166631]
[1728491322646,0.001644,61870.0,61869.0,0.63060212]
[1728491322859,0.00164,61879.0,61878.0,0.161608]
[1728491323058,0.00164,61879.0,61878.0,0.73920802]
[1728491323494,0.00164,61879.0,61878.0,0.82240802]
[1728491323717,0.00164,61880.0,61879.0,0.005]
[1728491323928,0.00164,61880.0,61879.0,0.35064826]
[1728491324581,0.00164,61880.0,61879.0,0.35044264]
[1728491324786,0.00164,61880.0,61879.0,0.39127524]
[1728491325021,0.00164,61880.0,61879.0,0.161605]
[1728491325245,0.005,61879.0,61878.0,0.244805]
[1728491326170,0.005,61879.0,61878.0,0.161605]
[1728491327310,0.005,61879.0,61878.0,0.166605]
[1728491327998,0.00164,61880.0,61879.0,0.184605]
[1728491328216,0.00164,61880.0,61879.0,0.34544264]
[1728491328499,0.00164,61880.0,61878.0,0.38912382]
[1728491328500,0.005,61879.0,61878.0,0.171607]
[1728491328728,0.00679438,61879.0,61878.0,0.171607]
[1728491329592,0.00679438,61879.0,61878.0,0.166607]
[1728491329593,0.005,61879.0,61878.0,0.166607]
[1728491331333,0.005,61879.0,61878.0,0.27724587]
[1728491331548,0.005,61879.0,61878.0,0.171607]
[1728491331782,0.006638,61879.0,61878.0,0.171607]
[1728491332863,0.006638,61879.0,61878.0,0.17390967]
[1728491334417,0.001638,61879.0,61878.0,0.35774731]
[1728491334627,0.001638,61879.0,61878.0,0.35544464]
[1728491334884,0.001638,61879.0,61878.0,0.51625125]
[1728491339439,0.001638,61879.0,61878.0,0.52145687]
[1728491339656,0.001638,61879.0,61878.0,0.60325687]
[1728491339897,0.001638,61879.0,61878.0,0.79485687]
[1728491340354,0.001638,61879.0,61878.0,0.89719326]
[1728491340559,0.001638,61879.0,61878.0,0.89298764]
[1728491340778,0.001638,61879.0,61878.0,0.89398764]
[1728491341000,0.001638,61879.0,61878.0,0.54058103]
[1728491341286,0.001638,61879.0,61878.0,0.53958103]
[1728491341745,0.001638,61879.0,61878.0,0.43458103]
[1728491341972,0.006638,61879.0,61878.0,0.161608]
[1728491342442,0.006638,61879.0,61878.0,0.163608]
[1728491342667,0.006638,61879.0,61878.0,0.161608]
[1728491342918,0.001638,61879.0,61878.0,0.37838043]
[1728491343147,0.001638,61879.0,61878.0,0.48418043]
[1728491343408,0.001638,61879.0,61878.0,0.48118043]
[1728491343618,0.001638,61879.0,61878.0,0.49199943]
[1728491343851,0.001638,61879.0,61878.0,0.48699943]
[1728491344081,0.001638,61879.0,61878.0,0.48199943]
[1728491344294,0.001638,61879.0,61878.0,0.48999943]
[1728491344537,0.001638,61879.0,61878.0,0.49799943]
[1728491345040,0.001638,61879.0,61878.0,0.49299943]
[1728491345257,0.00843238,61879.0,61878.0,0.178427]
[1728491347251,0.006638,61879.0,61878.0,0.178427]
[1728491347480,0.00843238,61879.0,61878.0,0.178427]
[1728491348357,0.006638,61879.0,61878.0,0.178427]
[1728491348776,0.006638,61879.0,61878.0,0.17943741]
[1728491349886,0.00843238,61879.0,61878.0,0.17943741]
[1728491350332,0.00843238,61879.0,61878.0,0.016819]
[1728491350552,0.00843238,61879.0,61878.0,0.178427]
[1728491350783,0.00843238,61879.0,61878.0,0.016819]
[1728491351436,0.17003738,61879.0,61878.0,0.008819]
[1728491351897,0.17003738,61879.0,61878.0,0.013819]
[1728491352121,0.17003738,61879.0,61878.0,0.005819]
[1728491352380,0.17003738,61879.0,61878.0,0.010819]
[1728491352598,0.17003738,61879.0,61878.0,0.005819]
[1728491352840,0.17003738,61879.0,61878.0,0.000819]
[1728491353060,0.17103738,61879.0,61878.0,0.000819]
[1728491353295,0.21869226,61879.0,61878.0,0.000819]
[1728491353734,0.21769226,61879.0,61878.0,0.000819]
[1728491353993,0.17203738,61879.0,61878.0,0.006819]
[1728491354198,0.17203738,61879.0,61878.0,0.001819]
[1728491354404,0.43487502,61879.0,61878.0,0.002819]
[1728491354650,0.43987502,61879.0,61878.0,0.002819]
[1728491354847,0.62657502,61879.0,61878.0,0.002819]
[1728491355064,0.62667502,61879.0,61878.0,0.002819]
[1728491355505,0.62467502,61879.0,61878.0,0.001819]
[1728491355936,0.62267502,61879.0,61878.0,0.001819]
[1728491356386,0.62167502,61879.0,61878.0,0.001819]
[1728491356732,0.62067502,61879.0,61878.0,0.000819]
[1728491356939,0.62167502,61879.0,61878.0,0.001819]
[1728491357570,0.62967502,61879.0,61878.0,0.002819]
[1728491358192,0.62467502,61879.0,61878.0,0.002819]
[1728491358418,0.62967502,61879.0,61878.0,0.002819]
[1728491359810,0.43997502,61879.0,61878.0,0.002819]
[1728491360045,0.17913738,61879.0,61878.0,0.002819]
[1728491361202,0.22680487,61879.0,61878.0,0.002819]
[1728491361423,0.17913738,61879.0,61878.0,0.002819]
[1728491362118,0.015738,61879.0,61878.0,0.164427]
[1728491362334,0.015738,61879.0,61878.0,0.29652112]
[1728491362767,0.015738,61879.0,61878.0,0.164427]
[1728491362987,0.015738,61879.0,61878.0,0.35023823]
[1728491362988,0.014738,61879.0,61878.0,0.35023823]
[1728491363193,0.01653238,61879.0,61878.0,0.35123823]
[1728491363402,0.021738,61879.0,61878.0,0.42833823]
[1728491363651,0.021738,61879.0,61878.0,0.26491123]
[1728491364070,0.02353238,61879.0,61878.0,0.25091123]
[1728491364262,0.02353238,61879.0,61878.0,0.23691123]
[1728491364517,0.00853238,61879.0,61878.0,0.23691123]
[1728491364724,0.01553238,61879.0,61878.0,0.39251923]
[1728491364939,0.01553238,61879.0,61878.0,0.39201923]
[1728491365171,0.01553238,61879.0,61878.0,0.39101923]
[1728491365382,0.01653238,61879.0,61878.0,0.39301923]
[1728491365564,0.01653238,61879.0,61878.0,0.23141123]
[1728491366043,0.01553238,61879.0,61878.0,0.23141123]
[1728491366260,0.01553238,61879.0,61878.0,0.23341123]
[1728491366511,0.013738,61879.0,61878.0,0.39501923]
[1728491366977,0.013738,61879.0,61878.0,0.39583823]
[1728491368979,0.013738,61879.0,61878.0,0.23423023]
[1728491369187,0.013738,61879.0,61878.0,0.39583823]
[1728491371875,0.013738,61879.0,61878.0,0.23423023]
[1728491372093,0.175343,61879.0,61878.0,0.19163023]
[1728491372315,0.01553238,61879.0,61878.0,0.19163023]
[1728491372546,0.25965452,61879.0,61878.0,0.004819]
[1728491373006,0.17713738,61879.0,61878.0,0.004819]
[1728491373241,0.20158335,61879.0,61878.0,0.004819]
[1728491373456,0.34224808,61879.0,61878.0,0.004819]
[1728491373699,0.29458335,61879.0,61878.0,0.002819]
[1728491373907,0.29758335,61879.0,61878.0,0.000819]
[1728491374133,0.36908044,61879.0,61878.0,0.000819]
[1728491374363,0.37208044,61879.0,61878.0,0.000819]
[1728491375008,0.59458188,61879.0,61878.0,0.000819]
[1728491375218,0.59558188,61879.0,61878.0,0.000819]
[1728491375423,0.47642006,61879.0,61878.0,0.000819]
[1728491375874,0.8272577,61879.0,61878.0,0.000819]
[1728491376093,0.8322577,61879.0,61878.0,0.000819]
[1728491376312,0.16843138,61867.0,61866.0,0.24236353]
[1728491376558,0.31606003,61867.0,61866.0,0.24236353]
[1728491376774,0.00079438,61860.0,61859.0,0.24236353]
[1728491376995,0.16344938,61860.0,61859.0,0.24236353]
[1728491377221,0.16845438,61858.0,61857.0,0.18681123]
[1728491379485,0.16946538,61854.0,61853.0,0.19281123]
[1728491380312,0.17046538,61854.0,61853.0,0.19981123]
[1728491382777,0.25217752,61854.0,61853.0,0.013]
[1728491382991,0.17046538,61854.0,61853.0,0.013]
[1728491383474,0.17046538,61854.0,61853.0,0.19981123]
[1728491388107,0.04750964,61876.0,61861.0,0.005]
[1728491388364,0.24236353,61873.0,61872.0,0.161623]
[1728491388576,0.001838,61879.0,61870.0,0.023]
[1728491388803,0.001838,61879.0,61878.0,0.18681123]
[1728491392538,0.001838,61879.0,61878.0,0.18881123]
[1728491392961,0.001838,61879.0,61878.0,0.18781123]
[1728491393385,0.003838,61879.0,61878.0,0.18681123]
[1728491393821,0.005838,61879.0,61878.0,0.18681123]
[1728491400511,0.005838,61879.0,61878.0,0.70704569]
[1728491401303,0.003838,61879.0,61878.0,0.44671923]
[1728491401523,0.001838,61879.0,61878.0,0.18681123]
[1728491401996,0.001838,61879.0,61878.0,0.18781123]
[1728491405739,0.166443,61879.0,61878.0,0.18681123]
[1728491405979,0.004838,61879.0,61878.0,0.18681123]
[1728491406717,0.004838,61879.0,61874.0,0.18681123]
[1728491407252,0.323217,61878.0,61874.0,0.18681123]
[1728491407537,0.1,61877.0,61861.0,0.89747476]
[1728491407773,0.18532515,61878.0,61861.0,0.89747476]
[1728491407774,0.161631,61869.0,61868.0,0.24236353]
[1728491408259,0.161639,61867.0,61862.0,0.18681123]
[1728491408502,0.323239,61874.0,61862.0,0.18681123]
[1728491408745,0.323267,61869.0,61862.0,0.18681123]
[1728491408984,0.323269,61868.0,61862.0,0.18681123]
[1728491409251,0.16164,61866.0,61862.0,0.18681123]
[1728491409722,0.323277,61867.0,61862.0,0.18681123]
[1728491410250,0.006,61869.0,61862.0,0.18681123]
[1728491410488,0.006,61869.0,61861.0,0.001]
[1728491410489,0.16165,61862.0,61861.0,0.001]
[1728491411194,0.02448753,61866.0,61855.0,0.24236353]
[1728491411448,0.161647,61863.0,61862.0,0.001]
[1728491411889,0.18613453,61863.0,61862.0,0.001]
[1728491412055,0.18613453,61863.0,61862.0,0.002]
[1728491412292,0.161647,61863.0,61862.0,0.001]
[1728491412686,0.161657,61860.0,61857.0,0.18681123]
[1728491412892,0.161659,61859.0,61857.0,0.18681123]
[1728491413398,0.161657,61859.0,61857.0,0.18681123]
[1728491414004,0.323311,61860.0,61855.0,0.18665476]
[1728491414213,0.161663,61857.0,61856.0,0.18681123]
[1728491414464,0.161669,61855.0,61853.0,0.00082]
[1728491414701,0.32331,61860.0,61853.0,0.00082]
[1728491414901,0.484983,61858.0,61857.0,0.001]
[1728491415079,0.323323,61858.0,61853.0,0.00082]
[1728491415283,0.32331,61860.0,61853.0,0.00082]
[1728491415558,0.161671,61854.0,61853.0,0.00082]
[1728491417511,0.161671,61854.0,61853.0,0.00182]
[1728491417742,0.18615854,61854.0,61853.0,0.00182]
[1728491418194,0.161671,61854.0,61853.0,0.00282]
[1728491418902,0.005,61860.0,61853.0,0.00282]
[1728491419136,0.166656,61860.0,61859.0,0.18681123]
[1728491419505,0.166655,61860.0,61859.0,0.18681123]
[1728491419706,0.005,61860.0,61859.0,0.18681123]
[1728491420145,0.161655,61860.0,61859.0,0.18681123]
[1728491420352,0.161631,61870.0,61864.0,0.323287]
[1728491420562,0.161626,61871.0,61870.0,0.18681123]
[1728491421744,0.168626,61871.0,61870.0,0.18781123]
[1728491421946,0.168626,61871.0,61870.0,0.18681123]
[1728491421947,0.161626,61871.0,61870.0,0.18681123]
[1728491422327,0.161625,61872.0,61870.0,0.18681123]
[1728491422526,0.163636,61871.0,61870.0,0.18681123]
[1728491422748,0.163636,61871.0,61870.0,0.18781123]
[1728491422749,0.170636,61871.0,61870.0,0.18781123]
[1728491423134,0.176636,61871.0,61870.0,0.18881123]
[1728491423802,0.169636,61871.0,61870.0,0.18781123]
[1728491424009,0.169636,61871.0,61870.0,0.001]
[1728491424208,0.169636,61871.0,61870.0,0.002]
[1728491424850,0.56790559,61871.0,61870.0,0.003]
[1728491425128,0.59239313,61871.0,61870.0,0.003]
[1728491425545,0.64237268,61871.0,61870.0,0.003]
[1728491425755,0.74483611,61871.0,61870.0,0.003]
[1728491426190,0.64237217,61871.0,61870.0,0.003]
[1728491426813,0.59439313,61871.0,61870.0,0.003]
[1728491427263,0.64236951,61871.0,61870.0,0.003]
[1728491427412,0.64236509,61871.0,61870.0,0.003]
[1728491428407,0.63636509,61871.0,61870.0,0.002]
[1728491428611,0.50993314,61871.0,61870.0,0.001]
[1728491428830,0.51593314,61871.0,61870.0,0.002]
[1728491429033,0.51757314,61871.0,61870.0,0.002]
[1728491429821,0.43811364,61871.0,61870.0,0.002]
[1728491430483,0.161671,61854.0,61853.0,0.24318353]
[1728491430784,0.42949618,61854.0,61853.0,0.24318353]
[1728491430920,0.42949618,61854.0,61853.0,0.00082]
[1728491431328,0.47743624,61854.0,61853.0,0.00082]
[1728491431541,1.08253224,61854.0,61853.0,0.00082]
[1728491431763,0.59689224,61854.0,61853.0,0.00082]
[1728491431971,0.85248329,61854.0,61853.0,0.00182]
[1728491432185,0.85248329,61854.0,61849.0,0.17695536]
[1728491432186,0.244181,61850.0,61849.0,0.17695536]
[1728491432392,1.65367693,61850.0,61849.0,0.17695536]
[1728491432620,1.67816447,61850.0,61849.0,0.17695536]
[1728491432818,1.87046447,61850.0,61849.0,0.17695536]
[1728491433237,2.35032147,61850.0,61849.0,0.17695536]
[1728491433442,2.45032147,61850.0,61849.0,0.14461836]
[1728491433673,2.47332147,61850.0,61849.0,0.14461836]
[1728491433870,2.47332147,61850.0,61849.0,0.01527036]
[1728491434293,0.58392123,61839.0,61817.0,0.082]
[1728491434508,1.28462587,61839.0,61817.0,0.082]
[1728491434697,1.18606341,61839.0,61817.0,0.082]
[1728491434865,0.266728,61832.0,61817.0,0.082]
[1728491435168,0.42256564,61832.0,61821.0,0.161754]
[1728491435562,0.1,61827.0,61817.0,0.082]
[1728491435798,0.1,61829.0,61820.0,0.323515]
[1728491436009,0.1,61838.0,61821.0,0.1886]
[1728491436222,0.161743,61827.0,61822.0,0.162573]
[1728491436493,0.161743,61827.0,61823.0,0.24236353]
[1728491436726,0.161744,61826.0,61822.0,0.000819]
[1728491436950,0.323487,61827.0,61822.0,0.000819]
[1728491437413,0.161746,61826.0,61822.0,0.000819]
[1728491437665,0.161746,61826.0,61824.0,0.04831789]
[1728491437945,0.004,61829.0,61822.0,0.2430433]
[1728491438161,0.001,61826.0,61825.0,0.161746]
[1728491438420,0.001,61826.0,61825.0,0.18681123]
[1728491438661,0.001,61826.0,61825.0,0.34855723]
[1728491439369,0.004,61829.0,61825.0,0.34855723]
[1728491439370,0.004,61829.0,61828.0,0.161739]
[1728491439552,0.004,61829.0,61828.0,0.60687664]
[1728491440377,0.004,61829.0,61828.0,0.84924017]
[1728491440607,0.24236353,61842.0,61828.0,0.84924017]
[1728491440608,0.09519323,61843.0,61842.0,0.161702]
[1728491441107,0.09519323,61843.0,61842.0,0.34553964]
[1728491441338,0.09519323,61843.0,61842.0,0.35053964]
[1728491441593,0.09519323,61843.0,61842.0,0.67570317]
[1728491441840,0.09519323,61843.0,61842.0,0.72833964]
[1728491442093,0.09519323,61843.0,61842.0,0.7928208]
[1728491442345,0.40300211,61859.0,61853.0,0.34848423]
[1728491442567,0.24236353,61859.0,61858.0,0.16166]
[1728491442818,0.24236353,61866.0,61862.0,0.161649]
[1728491443048,0.24236353,61866.0,61859.0,0.323312]
[1728491443292,0.161641,61866.0,61860.0,0.161654]
[1728491443522,0.161632,61869.0,61864.0,0.161642]
[1728491443774,0.0827,61883.0,61868.0,0.28035283]
[1728491444020,0.161617,61875.0,61870.0,0.161629]
[1728491444250,0.24236353,61877.0,61870.0,0.236729]
[1728491444478,0.161629,61870.0,61865.0,0.161641]
[1728491444729,0.161633,61869.0,61864.0,0.161642]
[1728491444945,0.006,61869.0,61866.0,0.161638]
[1728491445142,0.165276,61871.0,61866.0,0.161638]
[1728491445813,0.00365,61871.0,61870.0,0.001]
[1728491446479,0.00965,61871.0,61870.0,0.162629]
[1728491447124,0.00965,61871.0,61870.0,0.161629]
[1728491447537,0.01665,61871.0,61870.0,0.161629]
[1728491447875,0.01065,61871.0,61870.0,0.161629]
[1728491448354,0.01765,61871.0,61864.0,0.28035283]
[1728491448541,0.02365,61871.0,61865.0,0.24236353]
[1728491448838,0.02365,61871.0,61868.0,0.161633]
[1728491449380,0.01765,61871.0,61868.0,0.161633]
[1728491449834,0.02365,61871.0,61870.0,0.161629]
[1728491450473,0.00985,61871.0,61870.0,0.161629]
[1728491450669,0.01685,61871.0,61870.0,0.161629]
[1728491450795,0.01085,61871.0,61870.0,0.161629]
[1728491450993,0.00385,61871.0,61870.0,0.161629]
[1728491451330,0.01685,61871.0,61870.0,0.161629]
[1728491451941,0.01085,61871.0,61870.0,0.161629]
[1728491452139,0.00585,61871.0,61870.0,0.161629]
[1728491453661,0.00885,61871.0,61870.0,0.161629]
[1728491454205,0.00885,61871.0,61870.0,0.91101005]
[1728491454413,0.00885,61871.0,61870.0,0.66864652]
[1728491454624,0.00885,61871.0,61870.0,0.52746664]
[1728491455254,0.00685,61871.0,61870.0,0.343629]
[1728491455557,0.00385,61871.0,61870.0,0.164629]
[1728491456771,0.00385,61871.0,61870.0,0.166629]
[1728491457474,0.00385,61871.0,61870.0,0.163629]
[1728491457693,0.00485,61871.0,61870.0,0.161629]
[1728491457911,0.00585,61871.0,61870.0,0.161629]
[1728491458181,0.00585,61871.0,61866.0,0.323279]
[1728491458433,0.00585,61871.0,61864.0,0.60363983]
[1728491458434,0.00485,61871.0,61864.0,0.323287]
[1728491458651,0.00485,61871.0,61867.0,0.161635]
[1728491458874,0.166476,61871.0,61867.0,0.161635]
[1728491459101,0.00485,61871.0,61862.0,0.323296]
[1728491459351,0.00485,61871.0,61868.0,0.161633]
[1728491459963,0.00485,61871.0,61867.0,0.323273]
[1728491460198,0.00385,61871.0,61865.0,0.323281]
[1728491460437,0.165476,61871.0,61867.0,0.161634]
[1728491460609,0.00485,61871.0,61865.0,0.323281]
[1728491460895,0.00385,61871.0,61868.0,0.161633]
[1728491461136,0.00385,61871.0,61859.0,0.323313]
[1728491461137,0.00485,61871.0,61859.0,0.323313]
[1728491461363,0.00485,61871.0,61856.0,0.161664]
[1728491461545,0.00485,61871.0,61854.0,1.21460453]
[1728491461546,0.002,61866.0,61854.0,0.24236353]
[1728491461699,0.002,61866.0,61861.0,0.24236353]
[1728491461700,0.16165,61862.0,61861.0,0.24236353]
[1728491461936,0.161662,61858.0,61854.0,0.40403253]
[1728491462545,0.03404376,61865.0,61841.0,0.00725987]
[1728491462546,0.161697,61844.0,61841.0,0.00725987]
[1728491462796,0.32253464,61844.0,61841.0,0.00725987]
[1728491463028,0.161697,61844.0,61837.0,0.24236353]
[1728491463441,0.161697,61844.0,61829.0,0.24236353]
[1728491463442,0.60951392,61844.0,61829.0,0.24236353]
[1728491463634,0.60951392,61844.0,61838.0,0.24236353]
[1728491463635,0.42253464,61844.0,61838.0,0.24236353]
[1728491463861,0.54886343,61844.0,61838.0,0.24236353]
[1728491464880,0.55686343,61844.0,61843.0,0.00182]
[1728491465465,0.56086343,61844.0,61843.0,0.00082]
[1728491465721,0.261697,61844.0,61843.0,0.00082]
[1728491465929,0.275697,61844.0,61843.0,0.00082]
[1728491466158,0.175697,61844.0,61843.0,0.00082]
[1728491466387,0.161697,61844.0,61843.0,0.00082]
[1728491466845,0.161697,61844.0,61843.0,0.00182]
[1728491466846,0.175697,61844.0,61843.0,0.00182]
[1728491467109,0.014,61844.0,61843.0,0.00182]
[1728491467352,0.014,61844.0,61843.0,0.163519]
[1728491467579,0.1862,61861.0,61847.0,0.161688]
[1728491467580,0.323316,61859.0,61847.0,0.161688]
[1728491467813,0.24236353,61851.0,61847.0,0.161688]
[1728491468048,0.161676,61852.0,61847.0,0.161688]
[1728491468528,0.01,61844.0,61843.0,0.44321268]
[1728491468753,0.161672,61854.0,61848.0,0.161684]
[1728491469185,0.008,61851.0,61850.0,0.161681]
[1728491469399,0.161664,61857.0,61851.0,0.161678]
[1728491469902,0.161672,61854.0,61849.0,0.161683]
[1728491470117,0.161669,61855.0,61850.0,0.16168]
[1728491470333,0.32333,61857.0,61850.0,0.16168]
[1728491470334,0.161667,61856.0,61850.0,0.16168]
[1728491471052,0.161684,61849.0,61847.0,0.001]
[1728491471275,0.161684,61849.0,61833.0,0.1802]
[1728491471276,0.24236353,61858.0,61843.0,0.00082]
[1728491471277,0.161697,61844.0,61843.0,0.00082]
[1728491471922,0.42453464,61844.0,61843.0,0.00082]
[1728491472377,0.44897712,61844.0,61843.0,0.00182]
[1728491472599,0.44897712,61844.0,61843.0,0.00282]
[1728491472822,0.44697712,61844.0,61843.0,0.00182]
[1728491473721,0.42253464,61844.0,61843.0,0.00182]
[1728491473933,0.261697,61844.0,61843.0,0.00082]
[1728491474145,0.279697,61844.0,61843.0,0.00082]
[1728491474569,0.57121874,61844.0,61843.0,0.00082]
[1728491474825,0.44553464,61844.0,61843.0,0.00082]
[1728491475028,0.47200669,61844.0,61843.0,0.00082]
[1728491475873,0.47200669,61844.0,61828.0,0.00082]
[1728491475874,0.344436,61829.0,61828.0,0.00082]
[1728491476133,0.51227364,61829.0,61828.0,0.00082]
[1728491476364,0.67873432,61829.0,61828.0,0.00082]
[1728491476566,0.53674569,61829.0,61828.0,0.00082]
[1728491477260,0.53474569,61829.0,61828.0,0.00082]
[1728491477477,0.43557364,61829.0,61828.0,0.00082]
[1728491477700,0.43757364,61829.0,61828.0,0.00082]
[1728491478782,0.43557364,61829.0,61828.0,0.00082]
[1728491479216,0.57931631,61829.0,61828.0,0.00082]
[1728491479429,0.58131631,61829.0,61828.0,0.00082]
[1728491479646,0.60579852,61829.0,61828.0,0.00082]
[1728491480077,0.61679852,61829.0,61828.0,0.00082]
[1728491480936,0.62179852,61829.0,61828.0,0.00082]
[1728491481870,0.47605585,61829.0,61828.0,0.00082]
[1728491482110,0.285736,61829.0,61828.0,0.00082]
[1728491482512,0.185736,61829.0,61828.0,0.00082]
[1728491482934,0.024,61829.0,61828.0,0.00082]
[1728491483274,0.323451,61833.0,61828.0,0.00082]
[1728491483275,0.161734,61830.0,61828.0,0.00082]
[1728491483476,0.24236353,61843.0,61828.0,0.00082]
[1728491483680,0.40408153,61836.0,61832.0,0.161728]
[1728491483881,0.161718,61836.0,61832.0,0.161728]
[1728491484335,0.323422,61839.0,61830.0,0.323466]
[1728491484903,0.161719,61836.0,61831.0,0.161729]
[1728491485320,0.175719,61836.0,61831.0,0.161729]
[1728491486357,0.175719,61836.0,61828.0,0.00082]
[1728491486358,0.161736,61829.0,61828.0,0.00082]
[1728491486562,0.337441,61836.0,61828.0,0.00082]
[1728491486563,0.161733,61831.0,61828.0,0.00082]
[1728491486798,0.323448,61834.0,61828.0,0.00082]
[1728491487286,0.161733,61831.0,61828.0,0.00082]
[1728491488208,0.161733,61831.0,61828.0,0.00182]
[1728491488654,0.161733,61831.0,61828.0,0.00082]
[1728491489122,0.323459,61832.0,61828.0,0.00082]
[1728491489362,0.161736,61829.0,61828.0,0.00082]
[1728491490760,0.170736,61829.0,61828.0,0.00082]
[1728491492647,0.178736,61829.0,61828.0,0.00082]
[1728491493552,0.017,61829.0,61828.0,0.00082]
[1728491493779,0.017,61829.0,61828.0,0.162559]
[1728491494232,0.017,61829.0,61828.0,0.243513]
[1728491494237,0.017,61829.0,61828.0,0.00082]
[1728491494478,0.33957364,61829.0,61828.0,0.00082]
[1728491494739,0.45606096,61829.0,61828.0,0.00082]
[1728491495200,0.47409711,61829.0,61828.0,0.00082]
[1728491495632,0.49645145,61829.0,61828.0,0.00082]
[1728491495856,0.48745145,61829.0,61828.0,0.00082]
[1728491496090,0.48845145,61829.0,61828.0,0.00082]
[1728491496565,0.4804153,61829.0,61828.0,0.00082]
[1728491496803,0.280736,61829.0,61828.0,0.00082]
[1728491497613,0.43557364,61829.0,61828.0,0.00082]
[1728491498182,0.44657364,61829.0,61828.0,0.00082]
[1728491500219,0.44857364,61829.0,61828.0,0.00082]
[1728491501615,0.45357364,61829.0,61828.0,0.00082]
[1728491501859,0.5602611,61829.0,61828.0,0.00082]
[1728491502289,0.58561562,61829.0,61828.0,0.00082]
[1728491503408,0.47192816,61829.0,61828.0,0.00082]
[1728491504075,0.44657364,61829.0,61828.0,0.00082]
[1728491505690,0.52809953,61829.0,61828.0,0.00082]
[1728491505964,0.47306115,61829.0,61828.0,0.00082]
[1728491506392,0.47806115,61829.0,61828.0,0.00082]
[1728491507721,0.72042468,61829.0,61828.0,0.00082]
[1728491507933,1.40211715,61829.0,61828.0,1e-06]
[1728491508148,1.44982382,61829.0,61828.0,1e-06]
[1728491508558,1.43882382,61829.0,61828.0,1e-06]
[1728491508973,1.39396682,61829.0,61828.0,1e-06]
[1728491509429,1.40796682,61829.0,61828.0,1e-06]
[1728491510118,1.39396682,61829.0,61828.0,1e-06]
[1728491510337,1.40796682,61829.0,61828.0,1e-06]
[1728491510904,0.54944568,61823.0,61822.0,7.7e-07]
[1728491511289,0.91212009,61823.0,61822.0,7.7e-07]
[1728491511823,0.768767,61817.0,61816.0,7.7e-07]
[1728491512046,1.25800499,61817.0,61816.0,7.7e-07]
[1728491512466,1.47669252,61817.0,61816.0,7.7e-07]
[1728491512700,1.51522831,61817.0,61816.0,7.7e-07]
[1728491513039,1.52922831,61817.0,61816.0,7.7e-07]
[1728491513243,1.65668616,61817.0,61816.0,7.7e-07]
[1728491513678,1.54059217,61817.0,61816.0,7.7e-07]
[1728491514258,1.55459217,61817.0,61816.0,7.7e-07]
[1728491514687,1.69597562,61817.0,61816.0,7.7e-07]
[1728491515342,1.69597562,61817.0,61790.0,0.01]
[1728491515343,0.168807,61802.0,61790.0,0.01]
[1728491515562,0.71033832,61802.0,61790.0,0.01]
[1728491515790,0.71033832,61802.0,61801.0,0.00082]
[1728491516208,0.73570424,61802.0,61801.0,0.00082]
[1728491516440,0.74970424,61802.0,61801.0,0.00082]
[1728491516672,0.76370424,61802.0,61801.0,0.00082]
[1728491517440,0.48101056,61802.0,61801.0,0.00082]
[1728491517686,0.47801056,61802.0,61801.0,0.00082]
[1728491518127,0.47601056,61802.0,61801.0,0.00082]
[1728491518649,0.51654635,61802.0,61801.0,0.00082]
[1728491518891,0.50754635,61802.0,61801.0,0.00082]
[1728491519349,0.54405705,61802.0,61801.0,0.00082]
[1728491519571,0.54205705,61802.0,61801.0,0.00082]
[1728491519817,0.55805705,61802.0,61801.0,0.00082]
[1728491520044,0.63434459,61802.0,61801.0,0.00082]
[1728491520273,0.64834459,61802.0,61801.0,0.00082]
[1728491520501,0.58254459,61802.0,61801.0,0.00082]
[1728491520746,0.54405705,61802.0,61801.0,0.00082]
[1728491521145,0.55805705,61802.0,61801.0,0.00082]
[1728491521371,0.51452126,61802.0,61801.0,0.00082]
[1728491521619,0.63740776,61802.0,61801.0,0.00082]
[1728491521857,0.63413199,61802.0,61801.0,0.00082]
[1728491522093,0.51452126,61802.0,61801.0,0.00082]
[1728491522784,0.63599558,61802.0,61801.0,0.00082]
[1728491523012,0.51452126,61802.0,61801.0,0.00082]
[1728491523230,0.51952126,61802.0,61801.0,0.00082]
[1728491523415,0.54488689,61802.0,61801.0,0.00082]
[1728491524294,0.56937443,61802.0,61801.0,0.00082]
[1728491524780,0.53788689,61802.0,61801.0,0.00082]
[1728491525242,0.53988689,61802.0,61801.0,0.00082]
[1728491526117,0.54488689,61802.0,61801.0,0.00082]
[1728491526555,0.66061959,61802.0,61801.0,0.00082]
[1728491526778,0.54488689,61802.0,61801.0,0.00082]
[1728491529155,0.51952126,61802.0,61801.0,0.00082]
[1728491530464,0.83761269,61802.0,61801.0,0.00082]
[1728491530878,1.13160023,61802.0,61801.0,0.00082]
[1728491531092,1.23612593,61802.0,61801.0,0.00082]
[1728491531295,1.04392593,61802.0,61801.0,0.00082]
[1728491531500,0.95838396,61802.0,61801.0,0.00082]
[1728491531699,0.93389642,61802.0,61801.0,0.00082]
[1728491532822,0.90589642,61802.0,61801.0,0.00082]
[1728491533053,0.91989642,61802.0,61801.0,0.00082]
[1728491533268,0.84259642,61802.0,61801.0,0.00082]
[1728491533493,0.82859642,61802.0,61801.0,0.00082]
[1728491533728,0.86796366,61802.0,61801.0,0.00082]
[1728491534823,0.95350563,61802.0,61801.0,0.00082]
[1728491535062,0.70697897,61802.0,61801.0,0.00082]
[1728491536431,0.73146651,61802.0,61801.0,0.00082]
[1728491538565,0.91891736,61802.0,61801.0,0.00082]
[1728491538785,0.74282689,61802.0,61801.0,0.00082]
[1728491539221,0.71745965,61802.0,61801.0,0.00082]
[1728491539438,0.71745965,61802.0,61790.0,0.25236353]
[1728491539439,0.268835,61791.0,61790.0,0.25236353]
[1728491539663,1.10805699,61791.0,61790.0,0.25236353]
[1728491539931,1.00918347,61791.0,61790.0,0.01]
[1728491540385,1.00918347,61791.0,61774.0,0.24236353]
[1728491540386,0.45630685,61783.0,61774.0,0.24236353]
[1728491540618,0.66134115,61783.0,61774.0,0.24236353]